[Event "85th Tata Steel Masters 2023"]
[Site "Wijk aan Zee"]
[Date "2023.01.14"]
[Round "1.1"]
[White "Carlsen, Magnus"]
[Black "Aronian, Levon"]
[Result "1/2-1/2"]
[ECO "E05"]
[WhiteElo "2859"]
[BlackElo "2735"]
[Annotator "TA"]
[PlyCount "81"]
[EventDate "2023.01.10"]
[EventType "tourn"]
[EventCountry "NED"]
[SourceTitle "playchess.com"]
[Source "ChessBase"]
[SourceQuality "1"]
[TimeControl "40/6000+30:30/3000+30:900+30"]

{[%evp 23,81,16,16,11,11,8,8,8,23,19,48,48,56,60,58,49,42,43,50,56,76,73,61,58,61,35,35,35,35,36,35,36,36,36,33,12,34,36,14,0,0,0,0,0,0,0,0,0,0,0,0,0,0,0,0,0,0,0,0,0]} 1. d4 {[%emt 0:00:03]} Nf6 {[%emt 0:00:05]} 2. c4 {[%emt 0:00:06]} e6 {[%emt 0:00:04]} 3. Nf3 {[%emt 0:00:07]} d5 {[%emt 0:00:07]} 4. g3 {[%emt 0:00:07]} Be7 {[%emt 0:00:12]} 5. Bg2 {[%emt 0:00:12]} O-O {[%emt 0:00:06]} 6. O-O {[%emt 0:00:17]} dxc4 {[%emt 0:00:04]} 7. Qc2 {[%emt 0:00:09]} a6 {[%emt 0:00:08]} 8. a4 {[%emt 0:00:10]} Bd7 {[%emt 0:00:07]} 9. Qxc4 {[%emt 0:00:10]} Bc6 {[%emt 0:00:07]} 10. Bg5 {[%emt 0:00:54]} Bd5 {[%emt 0:05:10]} 11. Qc2 {[%emt 0:03:03]} Be4 {[%emt 0:01:01]} 12. Qc1 {[%emt 0:00:43]} h6 {[%emt 0:00:38]} 13. Bxf6 {[%emt 0:00:17] E05: Open Catalan: 5 Nf3 Be7.} Bxf6 {[%emt 0:00:06]} 14. Rd1 {[%emt 0:02:11]} a5 {[%emt 0:01:32]} 15. Nbd2 {[%emt 0:02:27]} Bh7 {[%emt 0:03:22]} 16. Nb3 {[%emt 0:12:31]} Nd7 {[%emt 0:08:55] [#]} 17. Ne5 $1 {[%emt 0:20:36]} c6 {[%emt 0:01:19]} 18. Qc3 {[%emt 0:03:00][%cal Ob3a5] [#]} Ra7 $146 {[%emt 0:00:32] [#]} ({Predecessor:} 18... Nb6 19. Nxa5 Nd5 20. Bxd5 Qxa5 21. Bb3 Rfd8 22. Qxa5 Rxa5 23. e3 Be4 24. Nc4 Ra6 {1-0 Giri,A (2780)-Cuenca Jimenez,J (2524) MrDodgy Online Inv 2nd blitz 2021 (1.5)}) 19. Nxa5 $1 {[%emt 0:10:46][%mdl 64] Deflection} Bxe5 {[%emt 0:01:15]} 20. dxe5 {[%emt 0:00:08] Nc4 would be deadly.} Rxa5 {[%emt 0:00:17] [#]} 21. Rxd7 $1 {[%emt 0:00:03][%mdl 64] Double Attack} Rxa4 {[%emt 0:00:24]} (21... Qxd7 22. Qxa5) 22. Rxa4 {[%emt 0:02:03][%cal Ba1a4,Ba4d4,Bd4d6][%mdl 32]} Qxd7 {[%emt 0:00:12]} 23. Rd4 {[%emt 0:00:06] Against Qd1+} Qc7 {[%emt 0:03:06]} 24. Rd6 {[%emt 0:02:04] White is more active.} Ra8 {[%emt 0:03:21]} 25. Bf3 {[%emt 0:05:46]} Bg6 {[%emt 0:02:06]} 26. h4 {[%emt 0:05:27]} h5 {[%emt 0:00:08]} 27. Kg2 {[%emt 0:11:33]} Qb6 {[%emt 0:11:18]} 28. Rd7 {[%emt 0:03:22]} Kh7 {[%emt 0:14:50]} 29. Qd2 {[%emt 0:02:38]} Ra5 {[%emt 0:07:13]} (29... Ra1 {looks sharper.} 30. Re7 Qb5 31. Qd8 Qxe5 32. Rxb7 Rb1) 30. b4 {[%emt 0:06:47]} (30. Qd6 {keeps more tension.} Qxb2 31. Qf8 Qa3 32. Qb8) 30... Rxe5 {[%emt 0:02:58]} 31. Qd6 {[%emt 0:00:09] The position is equal.} Qb5 {[%emt 0:01:26]} (31... Rb5 $2 32. Rd8 $18) 32. Qf8 {[%emt 0:08:43] Threatens to win with Rd8.} Rxe2 $1 {[%emt 0:00:27] And now ...Re1 would win.} 33. Rd8 {[%emt 0:00:17][%csl Gd8][%cal Rf8h8]} (33. Bxe2 Qxe2 34. Rxf7 (34. Rxb7 $2 Be4+ 35. Kh3 Qf1+ 36. Kh2 Qh1#) 34... Bxf7 35. Qxf7 b6 $15) 33... Be4 $1 {[%emt 0:00:23]} (33... Kh6 $2 34. Qh8+ (34. Bxe2 Qxe2 35. Qc5 Be4+ 36. Kh2 Bd5 $11) 34... Bh7 35. Rg8 $18 (35. Bxe2 Qxe2 36. Rg8 Qe4+ 37. Kh2 Qd4 $11) (35. Bxe2 Qxe2 36. Rg8 Qe4+ 37. Kh2 Qd4 $11)) 34. Bxe4+ {[%emt 0:00:10]} Rxe4 {[%emt 0:00:04]} 35. Qxf7 $11 {[%emt 0:00:07][%mdl 4096] Endgame Black must now prevent Rg8. KQR-KQR} Re1 {[%emt 0:00:53]} 36. Qg8+ {[%emt 0:00:19]} (36. Kh2 $5 {[%cal Rd8g8]} Qf5 37. Qg8+ Kh6 38. Qh8+ Qh7 39. Qf8 $11) 36... Kg6 {[%emt 0:00:05]} 37. Qe8+ {[%emt 0:00:05]} (37. Rd7 $2 {is a self mate.} Qf1+ 38. Kf3 Qh1+ 39. Kf4 e5#) 37... Kh7 {[%emt 0:00:19]} 38. Qh8+ {[%emt 0:00:06]} Kg6 {[%emt 0:00:04]} 39. Qe8+ {[%emt 0:00:07]} Kh7 {[%emt 0:00:04]} 40. Qh8+ {[%emt 0:00:07]} Kg6 {[%emt 0:00:05] ( -> ...Qf1+)} 41. Qe8+ {[%emt 0:50:09] An interesting game.   Weighted Error Value: White=0.03 (flawless) /Black=0.03 (flawless)} 1/2-1/2

[Event "85th Tata Steel Masters 2023"]
[Site "Wijk aan Zee"]
[Date "2023.01.14"]
[Round "1.2"]
[White "Caruana, Fabiano"]
[Black "Giri, Anish"]
[Result "1/2-1/2"]
[ECO "A17"]
[WhiteElo "2766"]
[BlackElo "2764"]
[Annotator "TA"]
[PlyCount "61"]
[EventDate "2023.01.10"]
[EventType "tourn"]
[EventCountry "NED"]
[SourceTitle "playchess.com"]
[Source "ChessBase"]
[SourceQuality "1"]
[TimeControl "40/6000+30:30/3000+30:900+30"]

{[%evp 9,61,-1,9,5,4,0,8,4,0,0,0,0,18,-5,5,-9,-8,-2,0,-19,-14,-47,-39,-46,-23,-34,-29,-33,-33,-42,-33,-38,-35,-38,-43,-106,-102,-97,-90,-95,0,0,0,0,0,0,0,0,0,0,0,-3,-3,-3]} 1. Nf3 {[%emt 0:00:06]} d5 {[%emt 0:00:25]} 2. e3 {[%emt 0:00:09]} Nf6 {[%emt 0:00:24]} 3. c4 {[%emt 0:00:19]} e6 {[%emt 0:00:08]} 4. Nc3 {[%emt 0:00:47]} dxc4 {[%emt 0:09:56]} 5. Bxc4 {[%emt 0:00:21]} a6 {[%emt 0:00:07]} 6. O-O {[%emt 0:04:43] A17: English Opening: 1...Nf6 with ...Bb4.} b5 {[%emt 0:03:08]} 7. Be2 {[%emt 0:00:26]} Bb7 {[%emt 0:01:07] Wards off e4} 8. a4 {[%emt 0:14:44]} b4 {[%emt 0:00:27]} 9. Nb1 {[%emt 0:00:04][%cal Bc3b1,Bb1d2,Bd2c4][%mdl 32]} c5 {[%emt 0:07:33]} 10. d3 {[%emt 0:04:56]} Be7 {[%emt 0:14:32]} 11. Nbd2 {[%emt 0:05:32]} O-O {[%emt 0:01:04]} 12. Nc4 {[%emt 0:04:24]} Nc6 {[%emt 0:01:07] [#]} 13. Qc2 $146 {[%emt 0:10:09]} ({Predecessor:} 13. e4 Nd7 14. Be3 Nb6 15. Nxb6 Qxb6 16. Rc1 Rac8 17. Nd2 Rfd8 18. Nb3 Na5 19. Nxa5 Qxa5 {1-0 Medvegy,Z (2524)-Keymer,V (2558) Chartres Blitz 2020 (4)}) 13... a5 {[%emt 0:03:50]} 14. e4 {[%emt 0:08:13]} Qc7 {[%emt 0:06:18]} 15. h3 {[%emt 0:02:08]} Nd7 {[%emt 0:04:09]} 16. Be3 {[%emt 0:02:36]} Ba6 {[%emt 0:09:37]} (16... f5 {looks sharper.} 17. b3 Bf6 18. Ra2 Nd4) 17. Ncd2 {[%emt 0:05:10]} Rac8 {[%emt 0:01:41]} 18. Rac1 {[%emt 0:06:42]} Qb6 {[%emt 0:04:46]} 19. Nb3 {[%emt 0:16:29] [#]} Nd4 $1 {[%emt 0:01:43]} 20. Bxd4 {[%emt 0:00:04]} cxd4 {[%emt 0:00:03]} 21. Qb1 {[%emt 0:00:06]} Nc5 {[%emt 0:12:59][%cal Bd7c5,Bc5a4,Ba4b2][%mdl 32]} 22. Nfxd4 {[%emt 0:00:44]} (22. Nxc5 $1 $15 Rxc5 23. Rxc5 Bxc5 24. b3) 22... Nxa4 $17 {[%emt 0:02:26]} 23. Qa2 {[%emt 0:00:39] [#]} Nxb2 {[%emt 0:04:55]} 24. Qxb2 {[%emt 0:03:40] Threatens to win with Ra1.} (24. Qxa5 Qxa5) 24... Bf6 {[%emt 0:00:49]} ({Better is} 24... a4 $17 25. Nd2 Rxc1 26. Rxc1 Bc5) 25. Rxc8 $11 {[%emt 0:14:05] The position is equal.} Rxc8 {[%emt 0:09:23]} 26. Qa2 {[%emt 0:00:04] And now Nf3 would win.} Bxd4 {[%emt 0:00:12]} 27. Nxd4 {[%emt 0:00:03]} Qxd4 {[%emt 0:00:04]} 28. Qxa5 {[%emt 0:00:03]} Rc6 {[%emt 0:02:58] White must now prevent ...b3.} (28... Bxd3 29. Rd1 g6 30. Bxd3 $16) 29. Qa4 {[%emt 0:01:19] Inhibits b3.} (29. Rb1 Rb6 $15) 29... Qc3 {[%emt 0:01:06]} 30. Rb1 {[%emt 0:01:07]} h6 {[%emt 0:01:09]} 31. Qxb4 {[%emt 0:00:47] Weighted Error Value: White=0.08 (flawless) /Black=0.07 (flawless)} ({Don't play} 31. Rxb4 Qc1+ 32. Bd1 Kh7 $15) 1/2-1/2

[Event "85th Tata Steel Masters 2023"]
[Site "Wijk aan Zee"]
[Date "2023.01.14"]
[Round "1.4"]
[White "Van Foreest, Jorden"]
[Black "So, Wesley"]
[Result "1/2-1/2"]
[ECO "E06"]
[WhiteElo "2681"]
[BlackElo "2760"]
[Annotator "TA"]
[PlyCount "98"]
[EventDate "2023.01.10"]
[EventType "tourn"]
[EventCountry "NED"]
[SourceTitle "playchess.com"]
[Source "ChessBase"]
[SourceQuality "1"]
[TimeControl "40/6000+30:30/3000+30:900+30"]

{[%evp 18,98,10,9,30,6,11,10,16,8,0,6,24,21,17,7,7,-8,1,0,6,0,0,-37,-37,-37,-37,-37,-42,-43,-41,-35,-33,-44,-35,-26,-45,-29,-10,-62,-40,-40,-40,-40,-40,-40,-37,-47,-47,-40,-40,-40,-40,-41,-39,-45,-32,-31,-32,-31,-37,-65,-36,-38,-11,-11,-11,-11,0,0,0,-32,-32,-32,-25,-36,-50,-50,-32,-32,-32,-32,-32]} 1. d4 {[%emt 0:00:08]} Nf6 {[%emt 0:01:02]} 2. c4 {[%emt 0:00:10]} e6 {[%emt 0:00:25]} 3. Nf3 {[%emt 0:00:08][%cal Bg1f3,Bf3e5,Be5c4][%mdl 32]} d5 {[%emt 0:00:36]} 4. g3 {[%emt 0:00:22]} Be7 {[%emt 0:02:24]} 5. Bg2 {[%emt 0:00:12]} O-O {[%emt 0:00:09]} 6. Nc3 {[%emt 0:01:14]} dxc4 {[%emt 0:01:21]} 7. Ne5 {[%emt 0:00:29]} c5 {[%emt 0:01:55]} 8. dxc5 {[%emt 0:00:37]} Qxd1+ {[%emt 0:00:15]} 9. Nxd1 {[%emt 0:00:14]} Bxc5 {[%emt 0:00:07]} 10. Nxc4 {[%emt 0:03:55]} Nd5 {[%emt 0:09:06] E06: Closed Catalan: Early deviations.} 11. Bd2 {[%emt 0:04:31]} Nc6 {[%emt 0:07:33]} 12. Rc1 {[%emt 0:02:49]} b6 {[%emt 0:02:14] The position is equal.} 13. Nc3 {[%emt 0:09:30]} Rd8 {[%emt 0:05:06]} 14. Ne3 {[%emt 0:10:18][%cal Re3d5] [#]} Bxe3 $146 {[%emt 0:11:43]} ({Predecessor:} 14... Nde7 15. Na4 Bxe3 16. Bxe3 Ba6 17. f4 Rac8 18. Kf2 Nb4 {½-½ Bartel,M (2639)-Stefansson,H (2529) Prague Challengers 2nd 2020 (6)}) 15. Bxe3 {[%emt 0:02:45]} Nce7 {[%emt 0:00:30]} 16. Bd2 {[%emt 0:07:12]} Bb7 {[%emt 0:02:41]} 17. Nb1 {[%emt 0:01:05]} f5 {[%emt 0:03:59]} 18. O-O {[%emt 0:01:35]} Rd7 {[%emt 0:00:21]} 19. Rfd1 {[%emt 0:12:50]} Rad8 {[%emt 0:04:14]} 20. Be1 {[%emt 0:05:32] [#]} Nf4 $1 {[%emt 0:11:05][%mdl 64] Discovered Attack, Double Attack} 21. Rxd7 {[%emt 0:00:50]} Nxe2+ {[%emt 0:00:45] Excellent horsemanship.} 22. Kf1 {[%emt 0:00:17]} Rxd7 {[%emt 0:00:07]} 23. Kxe2 {[%emt 0:00:10] aiming for Bxb7.} Bxg2 {[%emt 0:01:38]} 24. f3 $1 {[%emt 0:00:37] Wards off Be4} e5 {[%emt 0:02:47]} 25. Nd2 {[%emt 0:02:34]} e4 {[%emt 0:06:39]} 26. fxe4 {[%emt 0:01:10]} fxe4 {[%emt 0:01:15]} 27. Kf2 {[%emt 0:02:25]} Bh1 {[%emt 0:01:45]} 28. Ke2 {[%emt 0:07:17]} (28. Nc4 $11) 28... Nd5 {[%emt 0:04:31]} 29. Rc8+ {[%emt 0:05:52]} Kf7 {[%emt 0:00:06]} 30. Nc4 {[%emt 0:00:29] [#] And now Ne5+ would win.} Ke6 {[%emt 0:09:07] Repels Ne5} 31. Re8+ {[%emt 0:09:04]} Re7 {[%emt 0:04:02]} 32. Rxe7+ {[%emt 0:02:21]} Nxe7 $15 {[%emt 0:00:34][%mdl 4096] Endgame KBN-KBN} 33. Bc3 {[%emt 0:01:24]} g6 {[%emt 0:02:36]} 34. Ne3 {[%emt 0:00:57]} Nc6 {[%emt 0:00:17]} 35. Kd2 {[%emt 0:01:31]} g5 {[%emt 0:02:09]} 36. Ng4 {[%emt 0:09:47]} h5 {[%emt 0:01:25]} 37. Nf6 {[%emt 0:01:59]} Bf3 {[%emt 0:07:02]} 38. Ke3 {[%emt 0:00:08]} Kf5 {[%emt 0:00:03]} 39. Nd5 {[%emt 0:01:03]} Kg4 {[%emt 0:03:02]} (39... Ne5 $5 {[%cal Re5g4]} 40. Kd4 Bh1 $15) 40. Bf6 {[%emt 0:00:28]} Kh3 {[%emt 0:01:03]} 41. Bxg5 {[%emt 0:52:02]} Ne5 {[%emt 0:04:53]} 42. Nf6 {[%emt 0:00:00]} Nc4+ {[%emt 0:01:42]} 43. Kd4 {[%emt 0:00:00]} Nxb2 {[%emt 0:00:17]} 44. Nxe4 {[%emt 0:00:00]} Kxh2 {[%emt 0:09:43]} 45. Bf4 {[%emt 0:00:00]} Kh3 {[%emt 0:01:47]} 46. Nc3 {[%emt 0:00:00]} Kg4 {[%emt 0:03:09] Threatens to win with ...h4. Black is slightly better.} 47. Bd6 {[%emt 0:00:00]} a6 {[%emt 0:02:37]} 48. Ba3 {[%emt 0:00:00]} Nd1 {[%emt 0:00:05]} 49. Nxd1 {[%emt 0:00:00]} Bxd1 {[%emt 0:00:04] Weighted Error Value: White=0.07 (flawless) /Black=0.05 (flawless)} 1/2-1/2

[Event "85th Tata Steel Masters 2023"]
[Site "Wijk aan Zee"]
[Date "2023.01.14"]
[Round "1.5"]
[White "Rapport, Richard"]
[Black "Abdusattorov, Nodirbek"]
[Result "0-1"]
[ECO "C29"]
[WhiteElo "2740"]
[BlackElo "2713"]
[Annotator "TA"]
[PlyCount "94"]
[EventDate "2023.01.10"]
[EventType "tourn"]
[EventCountry "NED"]
[SourceTitle "playchess.com"]
[Source "ChessBase"]
[SourceQuality "1"]
[TimeControl "40/6000+30:30/3000+30:900+30"]

{[%evp 13,94,-17,-12,-31,-27,-23,-23,-24,0,0,0,0,0,0,0,0,0,-4,-12,6,0,-28,-34,-40,-40,-43,-38,-55,-52,-93,-80,-95,-87,-92,-100,-89,-92,-92,-93,-95,-99,-88,-79,-79,-79,-76,-72,-106,-108,-107,-114,-120,-97,-110,-91,-83,-52,-61,-67,-97,-97,-97,-97,-129,-97,-129,-122,-122,-122,-122,-122,-122,-122,-178,-122,-1076,-632,-29968,-29968,-29968,-29967,-29962,-29965]} 1. e4 {[%emt 0:00:57]} e5 {[%emt 0:00:19]} 2. Nc3 {[%emt 0:01:01]} Nf6 {[%emt 0:00:43]} 3. f4 {[%emt 0:01:10]} d5 {[%emt 0:01:39]} 4. fxe5 {[%emt 0:00:31]} Nxe4 {[%emt 0:00:10]} 5. Qf3 {[%emt 0:00:19]} f5 {[%emt 0:05:01]} 6. d3 {[%emt 0:01:16]} Nxc3 {[%emt 0:00:07]} 7. bxc3 {[%emt 0:00:05]} d4 $1 {[%emt 0:00:08]} 8. Be2 {[%emt 0:13:57] C29: Vienna Game: 2...Nf6 3 f4.} Nc6 {[%emt 0:03:27]} 9. Qg3 $1 {[%emt 0:01:06] Strongly threatening Bh5+.} Be6 {[%emt 0:04:22]} (9... dxc3 10. Bh5+ Kd7 11. Bf7 $16) 10. c4 {[%emt 0:02:07] Black has an edge. outshines the older 10.Bf3.} Bb4+ {[%emt 0:01:20]} 11. Kd1 {[%emt 0:00:18]} Qd7 {[%emt 0:06:21]} 12. Rb1 {[%emt 0:04:02]} O-O-O {[%emt 0:03:08]} 13. Bf3 {[%emt 0:03:01] [#] aiming for Bxc6.} Be7 $146 {[%emt 0:14:40][%cal Og7g5]} ({Predecessor:} 13... Ba5 14. Ne2 h6 15. h4 g5 16. Rb5 Bb6 17. a4 a6 18. Rxb6 cxb6 19. hxg5 hxg5 20. Rxh8 Rxh8 21. Bxg5 Rh1+ 22. Kd2 Na5 23. Qf4 Qxa4 24. Qxd4 Qa1 25. Qd8# {1-0 Seul,G (2372)-Pasti,A (2296) Titled Tuesday intern op 18th May blitz 2021 (10)}) 14. Nh3 {[%emt 0:10:26]} (14. Qxg7 Rdg8 15. Qh6 b6 $14) 14... b6 {[%emt 0:03:47]} 15. Nf4 {[%emt 0:37:04]} g5 {[%emt 0:06:36]} 16. Nxe6 {[%emt 0:02:32]} Qxe6 {[%emt 0:00:09]} 17. Rb5 {[%emt 0:00:52]} (17. Bxg5 $2 Rhg8 18. h4 (18. Bd5 $2 Rxd5 19. cxd5 Qxd5 $19) 18... h6 $19) 17... Nb8 {[%emt 0:22:05][%cal Bc6b8,Bb8d7,Bd7e5][%mdl 32]} 18. Rd5 {[%emt 0:08:50]} (18. Bxg5 Rhg8 19. Bd5 Rxd5 20. cxd5 Qd7 $17) 18... c6 {[%emt 0:04:34]} 19. Rxd8+ {[%emt 0:00:14]} Rxd8 {[%emt 0:00:02]} 20. h3 {[%emt 0:02:07]} Nd7 {[%emt 0:01:00]} 21. Qh2 {[%emt 0:08:16] White is weak on the dark squares} h6 {[%emt 0:05:48] Black is more active.} (21... Qxe5 22. Bxc6 Qxh2 23. Rxh2 $11) (21... Nxe5 $6 22. Re1 Bd6 23. Bxg5 $11) 22. g4 {[%emt 0:02:17]} Nxe5 {[%emt 0:00:43]} ({Much weaker is} 22... Qxe5 23. Bxc6 Qxh2 24. Rxh2 $11) 23. gxf5 {[%emt 0:04:22]} Nxf3 {[%emt 0:00:28]} 24. fxe6 {[%emt 0:00:07]} Nxh2 {[%emt 0:00:03]} 25. Rxh2 $17 {[%emt 0:00:04][%mdl 4096] Endgame KRB-KRB} Rf8 {[%emt 0:00:10] Threatens to win with ...Rf1+.} 26. Bb2 {[%emt 0:00:37]} Rf4 {[%emt 0:09:06]} 27. c3 {[%emt 0:00:15]} dxc3 {[%emt 0:00:06]} 28. Bxc3 {[%emt 0:00:06]} Kd8 {[%emt 0:00:49]} 29. Be5 {[%emt 0:01:26] Against Bd6} Rf1+ {[%emt 0:00:30]} 30. Kc2 {[%emt 0:03:49]} Bf6 $1 {[%emt 0:02:39]} 31. Re2 {[%emt 0:01:06]} Ke7 {[%emt 0:03:42]} 32. d4 {[%emt 0:01:00]} Kxe6 {[%emt 0:01:42]} 33. Bxf6+ {[%emt 0:00:53]} Kxf6 {[%emt 0:00:02] KR-KR} 34. d5 {[%emt 0:00:05] d6 is the strong threat.} cxd5 {[%emt 0:01:02]} 35. cxd5 {[%emt 0:00:01]} Ra1 {[%emt 0:05:52]} 36. Re6+ {[%emt 0:00:48]} Kf5 {[%emt 0:00:07]} 37. Rxh6 {[%emt 0:00:18]} Rxa2+ {[%emt 0:01:09]} 38. Kb3 {[%emt 0:00:21]} Ra1 {[%emt 0:03:33]} 39. Kc4 {[%emt 0:00:25]} Rc1+ {[%emt 0:00:27]} 40. Kd4 {[%emt 0:00:48]} Rd1+ {[%emt 0:01:01]} 41. Kc4 {[%emt 0:50:12] [#]} b5+ $1 {[%emt 0:51:13][%mdl 512]} 42. Kc5 {[%emt 0:00:00] [#]} b4 $1 {[%emt 0:00:00][%mdl 512] ( -> ...b3)} 43. Rh8 {[%emt 0:00:00] [#]} b3 {[%emt 0:00:00]} (43... a5 $1 $19 44. Rf8+ Ke5 45. Re8+ Kf4) 44. Rf8+ $2 {[%emt 0:00:00][%mdl 8192] [#] Loses the game.} (44. Rb8 $17) 44... Ke4 $1 $19 {[%emt 0:00:00]} 45. Re8+ {[%emt 0:00:00]} Kd3 {[%emt 0:00:00] Black mates.} 46. d6 {[%emt 0:00:00]} b2 {[%emt 0:00:00]} (46... Rc1+ 47. Kd5 $17) 47. d7 {[%emt 0:00:00]} Kc2 {[%emt 0:00:00] Weighted Error Value: White=0.35/Black=0.03 (flawless)} ({Don't do} 47... b1=R 48. d8=Q+ (48. d8=R+ Kc3 $11) 48... Kc3 49. Re3+ Kc2 50. Re2+ Kc3 51. Qa5+ Kd3 52. Qa6+) 0-1

[Event "85th Tata Steel Masters 2023"]
[Site "Wijk aan Zee"]
[Date "2023.01.14"]
[Round "1.6"]
[White "Praggnanandhaa R"]
[Black "Erigaisi Arjun"]
[Result "1/2-1/2"]
[ECO "D87"]
[WhiteElo "2684"]
[BlackElo "2722"]
[Annotator "TA"]
[PlyCount "80"]
[EventDate "2023.01.10"]
[EventType "tourn"]
[EventCountry "NED"]
[SourceTitle "playchess.com"]
[Source "ChessBase"]
[SourceQuality "1"]
[TimeControl "40/6000+30:30/3000+30:900+30"]

{[%evp 19,80,16,32,0,0,0,0,0,3,0,0,0,0,0,0,0,0,0,0,0,0,0,0,0,0,0,0,0,0,0,0,0,0,0,0,0,0,0,0,0,0,0,0,0,0,0,0,0,0,0,0,0,0,0,0,0,0,0,0,0,0,0,0]} 1. d4 {[%emt 0:00:47]} Nf6 {[%emt 0:00:08]} 2. c4 {[%emt 0:00:05]} g6 {[%emt 0:00:05]} 3. Nc3 {[%emt 0:00:04]} d5 {[%emt 0:00:06]} 4. cxd5 {[%emt 0:00:43]} Nxd5 {[%emt 0:00:06]} 5. e4 {[%emt 0:00:04]} Nxc3 {[%emt 0:00:05]} 6. bxc3 {[%emt 0:00:03]} Bg7 {[%emt 0:00:06]} 7. Bc4 {[%emt 0:00:12]} c5 {[%emt 0:00:11]} 8. Ne2 {[%emt 0:00:06]} O-O {[%emt 0:00:07]} 9. O-O {[%emt 0:01:33]} Nc6 {[%emt 0:00:15]} 10. Be3 {[%emt 0:00:10]} b6 {[%emt 0:00:06] 10...Bg4 is a critical line.} 11. Qd2 {[%emt 0:01:36] D87: Exchange Grünfeld: Classical Line: Variations without ...cxd4.} Bb7 {[%emt 0:00:43] The position is equal.} 12. Rac1 {[%emt 0:00:35]} e6 {[%emt 0:01:21]} 13. f3 {[%emt 0:02:05]} ({Much weaker is} 13. dxc5 Qxd2 14. Bxd2 Ne5 $17) 13... Rc8 {[%emt 0:02:58]} 14. h4 {[%emt 0:05:32]} Na5 {[%emt 0:01:53]} (14... Qxh4 $2 15. Bg5 Qh5 16. Ng3 $18) 15. Bd3 {[%emt 0:05:10]} cxd4 {[%emt 0:00:58]} (15... Qxh4 $2 16. Bg5 $18) 16. cxd4 {[%emt 0:00:43]} Qxh4 {[%emt 0:00:28]} 17. Bg5 {[%emt 0:05:43] Inhibits Qe7.} Qh5 {[%emt 0:00:37]} 18. e5 {[%emt 0:02:45]} f6 {[%emt 0:00:53]} 19. exf6 {[%emt 0:03:04]} Bxf6 {[%emt 0:00:16]} 20. Bxf6 {[%emt 0:01:03]} Rxf6 {[%emt 0:01:05]} 21. Rxc8+ {[%emt 0:07:53]} Bxc8 {[%emt 0:00:06]} 22. Rc1 {[%emt 0:04:52]} Bb7 {[%emt 0:02:29] [#]} 23. Be4 $146 {[%emt 0:06:46]} ({Predecessor:} 23. Qe3 Qd5 24. Nc3 Qd6 25. Nb5 Qf4 26. Re1 Qg3 27. Rf1 Qf4 28. Re1 Qg3 29. Rf1 Qf4 30. Re1 Qg3 {½-½ Georgiev,K (2644)-Xu,X (2532) TUR-chT 1st League 2017 (2.5)}) 23... Rf7 {[%emt 0:35:19] Prevents Rc7.} 24. Bxb7 {[%emt 0:14:09]} Nxb7 {[%emt 0:00:07]} 25. Qe3 {[%emt 0:03:11]} Qf5 {[%emt 0:02:49]} 26. Rc6 {[%emt 0:04:11]} Nd8 {[%emt 0:09:34]} 27. Rd6 {[%emt 0:06:02]} Qf6 {[%emt 0:01:55] ...Rc7 would be deadly.} 28. Ng3 {[%emt 0:04:04]} Qe7 {[%emt 0:02:49]} 29. Ne4 {[%emt 0:07:16]} Rf5 {[%emt 0:02:40]} (29... Nb7 $5 30. Rc6 $8 Nd8 $11) 30. Qb3 {[%emt 0:02:12] Repels Rd5} Kg7 {[%emt 0:17:41]} 31. Qc4 {[%emt 0:03:06]} h5 {[%emt 0:08:05]} 32. Kf1 {[%emt 0:06:09]} h4 {[%emt 0:03:39]} 33. Qc8 {[%emt 0:02:52]} Rd5 {[%emt 0:00:07]} 34. Rxd5 {[%emt 0:00:22]} exd5 $11 {[%emt 0:00:06][%mdl 4096] Endgame KQN-KQN} 35. Nc3 {[%emt 0:00:09]} Qg5 {[%emt 0:01:52] White must now prevent ...Qc1+.} 36. Ne2 {[%emt 0:01:50] Against Qc1+} Nf7 {[%emt 0:01:21]} 37. Qb7 {[%emt 0:03:25] Dodges Qe7} Qf5 {[%emt 0:02:54] [#] ...Qb1+ is the strong threat.} 38. Qxa7 {[%emt 0:01:28]} h3 {[%emt 0:01:25]} 39. gxh3 {[%emt 0:00:31]} Qxh3+ {[%emt 0:02:43]} 40. Kf2 {[%emt 0:01:24]} Qh4+ {[%emt 0:01:01] An even fight not without its subleties.   Weighted Error Value: White=0.01 (flawless) /Black=0.01 (flawless)} 1/2-1/2